[Event "1st Festival Galdar 2024"]
[Site "?"]
[Date "2024.09.03"]
[Round "2.11"]
[White "Rakotomaharo, Fy Antenaina"]
[Black "Cruz Ramirez, Nauzet"]
[Result "1-0"]
[Annotator "TA"]
[ECO "B43"]
[WhiteElo "2440"]
[BlackElo "2059"]
[PlyCount "53"]
[EventDate "2024.09.02"]
[EventType "swiss"]
[SourceTitle "playchess.com"]
[Source "ChessBase"]
[SourceQuality "1"]
[TimeControl "5400+30"]

{[%evp 12,53,25,28,37,28,25,20,71,14,34,0,0,2,2,0,1,-25,19,26,74,60,175,173,402,383,406,367,558,533,749,724,659,522,508,477,444,464,466,454,439,424,438,435]} 1. e4 {[%emt 0:00:11]} c5 {[%emt 0:00:15]} 2. Nf3 {[%emt 0:00:33]} e6 {[%emt 0:00:28]} 3. d4 {[%emt 0:00:43]} cxd4 {[%emt 0:00:12]} 4. Nxd4 {[%emt 0:00:06]} a6 {[%emt 0:00:48]} 5. a3 {[%emt 0:00:30]} Nf6 {[%emt 0:01:33]} 6. Nc3 {[%emt 0:00:13]} Qc7 {[%emt 0:01:22]} 7. f4 {[%emt 0:01:30]} d6 {[%emt 0:00:10]} 8. Qf3 {[%emt 0:01:09]} b5 {[%emt 0:09:23]} 9. g4 {[%emt 0:00:38][%cal Bg2g4,Bg4g5][%mdl 32]} Bb7 {[%emt 0:02:21]} (9... d5 $11) 10. Bd3 {[%emt 0:10:41]} ({White should play} 10. g5 $16 Nfd7 11. h4) 10... Nc6 $11 {[%emt 0:02:22]} 11. Nxc6 {[%emt 0:00:27]} Bxc6 {[%emt 0:00:47]} 12. g5 {[%emt 0:00:17]} Nd7 {[%emt 0:00:06]} 13. Bd2 {[%emt 0:00:22]} Qb7 {[%emt 0:02:58]} 14. b4 {[%emt 0:02:37]} Nb6 {[%emt 0:05:03]} 15. f5 $36 {[%emt 0:02:31][%mdl 2048] White is pushing.} e5 {[%emt 0:04:11]} (15... exf5 $11 {is superior.} 16. Qxf5 Nd7) 16. O-O {[%emt 0:03:01] White is more active.} O-O-O {[%emt 0:07:10]} ({Better is} 16... h6 $14) 17. a4 $18 {[%emt 0:03:14]} bxa4 {[%emt 0:09:15] [#]} (17... d5) 18. Qe2 {[%emt 0:01:04]} Qc7 {[%emt 0:06:19]} 19. Bxa6+ {[%emt 0:01:14]} Kb8 {[%emt 0:04:11]} (19... Kd7 $142 20. Be3 Ke8 21. Nxa4 Nxa4) 20. Nb5 {[%emt 0:06:13] White is clearly winning.} Bxb5 {[%emt 0:01:44]} 21. Qxb5 {[%emt 0:00:08]} d5 {[%emt 0:01:31] Black is weak on the light squares} 22. Rxa4 {[%emt 0:01:19] [#] Rfa1 is the strong threat.} Rd6 {[%emt 0:02:29]} 23. Rfa1 {[%emt 0:06:12][%cal Oa6c8] Black must now prevent Bc8!} Qc6 {[%emt 0:03:50]} 24. Qxc6 {[%emt 0:00:33]} Rxc6 {[%emt 0:00:04]} 25. R4a2 {[%emt 0:00:08]} d4 {[%emt 0:00:45]} 26. Bb5 {[%emt 0:00:50]} Rd6 {[%emt 0:01:22]} 27. Ra7 {[%emt 0:00:41] Weighted Error Value: White=0.21 (precise) /Black=0.41.  Mistake:       	White=1     	Black=5      Inaccurate:     	White=1     	Black=2      OK:         	White=10    	Black=6      Best:        	---       	Black=1} 1-0

[Event "1st Festival Galdar 2024"]
[Site "?"]
[Date "2024.09.03"]
[Round "2.13"]
[White "Yankelevich, Lev"]
[Black "Ramirez Maillo, Cristian"]
[Result "1-0"]
[Annotator "TA"]
[ECO "C70"]
[WhiteElo "2420"]
[BlackElo "1995"]
[PlyCount "77"]
[EventDate "2024.09.02"]
[EventType "swiss"]
[SourceTitle "playchess.com"]
[Source "ChessBase"]
[SourceQuality "1"]
[TimeControl "5400+30"]

{[%evp 9,77,47,64,58,65,68,90,72,66,55,69,72,64,68,100,80,80,95,123,108,223,111,109,108,113,109,116,116,114,108,114,94,101,101,186,212,199,186,203,210,193,162,424,212,439,181,194,184,189,182,190,124,155,120,175,176,172,173,207,152,192,164,244,230,221,203,163,191,425,411]} 1. e4 {[%emt 0:00:18]} e5 {[%emt 0:00:13]} 2. Nf3 {[%emt 0:00:05]} Nc6 {[%emt 0:00:07]} 3. Bb5 {[%emt 0:00:03][%cal Bf1b5,Bb5a4,Ba4b3][%mdl 32]} a6 {[%emt 0:00:08]} 4. Ba4 {[%emt 0:00:05]} f5 {[%emt 0:00:06]} 5. d4 {[%emt 0:00:03]} exd4 {[%emt 0:01:18]} 6. e5 {[%emt 0:00:05][%cal Oe1g1]} (6. exf5 Qe7+ 7. Kf1 Qe4 $11) 6... b5 {[%emt 0:00:41]} 7. Bb3 {[%emt 0:00:05][%cal Oe1g1] And now 0-0! would win.} Na5 {[%emt 0:00:19]} 8. Qxd4 {[%emt 0:00:07] White is better.} Bb7 {[%emt 0:05:18]} 9. Bd5 {[%emt 0:00:05]} c6 {[%emt 0:01:18]} 10. Bxg8 {[%emt 0:00:05]} Rxg8 {[%emt 0:00:04]} 11. Qd3 {[%emt 0:00:09]} (11. Bg5 Qc7 $15) 11... g6 {[%emt 0:04:38]} 12. Bg5 {[%emt 0:14:14]} Be7 {[%emt 0:01:14] Black is weak on the dark squares} 13. h4 {[%emt 0:01:16]} d6 {[%emt 1:21:36]} 14. Nbd2 {[%emt 0:09:10]} dxe5 {[%emt 0:00:00]} (14... c5 $16) 15. Nxe5 {[%emt 0:00:47]} (15. Qc3 $1 $18 {is the precise move to win.}) 15... Qxd3 $16 {[%emt 0:00:00]} 16. Nxd3 {[%emt 0:01:05] Excellent horsemanship.} O-O-O {[%emt 0:00:00]} 17. O-O-O {[%emt 0:07:36]} Rge8 {[%emt 0:00:00]} 18. Rhe1 {[%emt 0:13:48]} Bxg5 {[%emt 0:00:00]} 19. hxg5 {[%emt 0:04:00]} Kc7 {[%emt 0:00:00]} 20. Nc5 {[%emt 0:02:23]} Bc8 {[%emt 0:00:00] Prevents Ne6+.} 21. Rh1 $1 $36 {[%emt 0:05:16][%cal Be1h1,Bh1h7,Bh7g7][%mdl 2080] White has strong initiative.} Kb6 {[%emt 0:00:00]} (21... Re7 $16) 22. b4 $18 {[%emt 0:01:18]} Nb7 {[%emt 0:00:00]} 23. Nxb7 {[%emt 0:01:54]} (23. Rxh7 Nxc5 24. bxc5+ Kxc5 $11) 23... Bxb7 {[%emt 0:00:00]} 24. Rxh7 {[%emt 0:00:06]} Rd4 {[%emt 0:00:00]} 25. c3 {[%emt 0:04:06]} Rg4 {[%emt 0:00:00]} (25... Rd3) 26. g3 {[%emt 0:00:44]} (26. Nb3 $142 Bc8 27. Rd6) 26... Rxg5 $2 {[%emt 0:00:00] [#]} (26... Re2 $2 27. Nb3 Rge4 28. Nc5 $18) (26... Bc8 {is a better defense.} 27. a4 a5 (27... bxa4 $2 28. f3 $18) 28. bxa5+ Kxa5 29. Nb3+ Ka6) 27. a4 $1 {[%emt 0:03:36][%mdl 512]} Rh5 {[%emt 0:00:00]} 28. Rg7 {[%emt 0:01:39]} Ka7 {[%emt 0:00:00]} 29. Nb3 {[%emt 0:02:44]} (29. Rxg6 $6 Rh2 $16) 29... Kb8 {[%emt 0:00:00]} 30. Nc5 {[%emt 0:06:15]} (30. Rxg6 bxa4 31. Nc5 Rh2) (30. a5 $18) 30... Bc8 $16 {[%emt 0:00:00][%cal Of5f4]} 31. Rxg6 {[%emt 0:00:07] White has more active pieces.} Rh2 {[%emt 0:00:00] [#]} (31... bxa4 $16 {was called for.} 32. Kb2 (32. Rxc6 Re2 $16) (32. Nxa4 f4 $16) 32... a5 33. bxa5 f4 34. Rxc6 (34. Nxa4 fxg3 35. fxg3 Rxa5 $11) 34... fxg3) 32. Rd2 $1 $18 {[%emt 0:02:21]} bxa4 {[%emt 0:00:00]} 33. Nxa4 {[%emt 0:02:03]} Rh1+ {[%emt 0:00:00]} 34. Kc2 {[%emt 0:01:47]} f4 {[%emt 0:00:00] aiming for ...Bf5+.} 35. Rxc6 {[%emt 0:01:37]} Bf5+ {[%emt 0:00:00] [#]} (35... Ra1 {might work better.}) 36. Kb3 $1 {[%emt 0:00:08]} Rb1+ {[%emt 0:00:00]} 37. Rb2 {[%emt 0:01:43] Black must now prevent Rxb1.} Rxb2+ {[%emt 0:00:00]} 38. Nxb2 {[%emt 0:00:08]} f3 $2 {[%emt 0:00:00]} (38... Be6+ 39. Ka3 fxg3 40. fxg3 (40. Rxa6 gxf2 41. b5 f1=Q $19) 40... Bc8) 39. Rf6 {[%emt 0:00:18] Weighted Error Value: White=0.29 (precise) /Black=0.36.  Mistake:       	White=4     	Black=7      Inaccurate:     	---       	Black=1      OK:         	White=13    	Black=12     Best:        	White=1     	Black=3      Strong:       	White=2     	---} 1-0

[Event "1st Festival Galdar 2024"]
[Site "?"]
[Date "2024.09.03"]
[Round "2.14"]
[White "Camino Carrio, Nicanor"]
[Black "Fiorito, Francisco"]
[Result "0-1"]
[Annotator "TA"]
[ECO "B30"]
[WhiteElo "2008"]
[BlackElo "2416"]
[PlyCount "52"]
[EventDate "2024.09.02"]
[EventType "swiss"]
[SourceTitle "playchess.com"]
[Source "ChessBase"]
[SourceQuality "1"]
[TimeControl "5400+30"]

{[%evp 11,52,23,29,33,25,5,35,27,18,0,-11,-6,6,-4,0,-18,-20,-68,-37,-31,-49,-74,-76,-79,-82,-82,-79,-75,-87,-80,-72,-79,-69,-90,-90,-96,-65,-260,-112,-171,-171,-449,-438]} 1. e4 {[%emt 0:00:03]} c5 {[%emt 0:00:06]} 2. Nf3 {[%emt 0:00:12]} Nc6 {[%emt 0:00:04]} 3. Bb5 {[%emt 0:00:26]} Nf6 {[%emt 0:00:05]} 4. Nc3 {[%emt 0:00:11]} Qc7 {[%emt 0:00:09]} 5. O-O {[%emt 0:00:31]} Nd4 {[%emt 0:00:09]} 6. Re1 {[%emt 0:03:00]} a6 {[%emt 0:00:05]} 7. Bf1 {[%emt 0:02:00]} d6 {[%emt 0:00:05]} 8. h3 {[%emt 0:00:28] Inhibits Bg4.} g6 {[%emt 0:03:56]} 9. Nxd4 {[%emt 0:04:54] White is slightly better.} cxd4 {[%emt 0:00:29]} 10. Nd5 {[%emt 0:00:28]} Nxd5 {[%emt 0:00:06]} 11. exd5 {[%emt 0:00:05]} Bg7 {[%emt 0:00:50]} 12. d3 {[%emt 0:02:51]} O-O {[%emt 0:00:10]} 13. Bg5 {[%emt 0:00:28]} e5 {[%emt 0:00:06]} 14. Qd2 {[%emt 0:02:06]} (14. dxe6 $11 {is superior.} Bxe6 15. Bd2) 14... Qc5 {[%emt 0:04:37]} 15. c4 $1 {[%emt 0:00:18]} dxc3 {[%emt 0:01:24]} 16. Qxc3 {[%emt 0:01:27]} Qxd5 {[%emt 0:03:22]} 17. Be7 {[%emt 0:00:50][%cal Bg5e7,Be7d6,Bd6c7,Bc7b6,Bb6c5][%mdl 32]} Re8 {[%emt 0:00:15]} 18. Qc7 {[%emt 0:00:12]} Bf5 {[%emt 0:02:32]} (18... Bf8 {looks sharper.} 19. Bxf8 Kxf8 20. d4 Qxd4 21. Bc4 d5) 19. Qxd6 {[%emt 0:00:12]} Qxd6 {[%emt 0:01:23]} 20. Bxd6 {[%emt 0:00:08]} Rad8 {[%emt 0:00:04]} 21. Bc7 {[%emt 0:03:21]} Rd7 {[%emt 0:01:49]} 22. Bb6 {[%emt 0:00:07]} Re6 $36 {[%emt 0:09:27][%mdl 2048] Black is on the roll. Black is more active.} (22... Bxd3 23. Bxd3 Rxd3 24. Rad1 Rxd1 25. Rxd1 $15) 23. Bc5 {[%emt 0:04:21]} Rc6 {[%emt 0:03:38]} 24. d4 {[%emt 0:01:09] [#]} Be6 {[%emt 0:00:28]} (24... exd4 $2 25. Re8+ $18) (24... h5 $1 $19 {and Black stays clearly on top.} 25. b3 exd4) 25. Rac1 {[%emt 0:04:54]} (25. Rad1 $17 {was worth a try.}) 25... exd4 $19 {[%emt 0:00:10]} ({And not} 25... Bxa2 26. Ra1 (26. dxe5 Rdc7 $17) 26... b6 (26... exd4 $2 27. Re8+ $18) (26... Be6 27. Bb5 $11) 27. Rxa2 $11) 26. Bd3 $2 {[%emt 0:00:06]} (26. Bb4 {might work better.}) 26... Rdc7 {[%emt 0:00:55] Weighted Error Value: White=0.45/Black=0.16 (very precise) .  Loses game:     	White=1     	---        Mistake:       	White=3     	Black=1      Inaccurate:     	White=1     	Black=3      OK:         	White=4     	Black=8      Best:        	White=1     	Black=3      Strong:       	White=1     	---} (26... Bxa2 $2 {perishes.} 27. Re8+ $18) 0-1

[Event "1st Festival Galdar 2024"]
[Site "?"]
[Date "2024.09.03"]
[Round "2.15"]
[White "Sanchez Gonzalez, Diego"]
[Black "Fiorito, Joaquin"]
[Result "0-1"]
[Annotator "TA"]
[ECO "C45"]
[WhiteElo "1995"]
[BlackElo "2402"]
[PlyCount "64"]
[EventDate "2024.09.02"]
[EventType "swiss"]
[SourceTitle "playchess.com"]
[Source "ChessBase"]
[SourceQuality "1"]
[TimeControl "5400+30"]

{[%evp 10,64,20,0,21,20,34,-21,-31,-14,-20,-16,-12,-135,-125,-321,-260,-392,-220,-350,-358,-350,-356,-495,-484,-501,-488,-785,-763,-771,-775,-986,-961,-980,-962,-1310,-1325,-1267,-1275,-1445,-1414,-1638,-1660,-1497,-1470,-1460,-1431,-2109,-1938,-1609,-1808,-2083,-2058,-2305,-1996,-29970,-6644]} 1. e4 {[%emt 0:00:03]} e5 {[%emt 0:00:07]} 2. Nf3 {[%emt 0:00:14]} Nc6 {[%emt 0:00:07]} 3. d4 {[%emt 0:00:16]} exd4 {[%emt 0:00:07]} 4. Nxd4 {[%emt 0:00:05]} Qf6 {[%emt 0:00:13]} 5. Nb5 {[%emt 0:00:09]} Bc5 {[%emt 0:00:45]} 6. Qe2 {[%emt 0:00:33]} (6. Nxc7+ $2 Kd8 7. Be3 Bxe3 (7... Kxc7 8. Bxc5 Qxb2 9. Bd6+ Kd8 10. Nd2 $16) 8. fxe3 Kxc7 $19) 6... Kd8 {[%emt 0:04:30]} 7. N1c3 {[%emt 0:03:48]} Nge7 {[%emt 0:03:05] [#] Hoping for ...a6.} 8. a4 {[%emt 0:07:10]} ({White must play} 8. Na4 $1 $14 Bb4+ 9. Nbc3) 8... a6 $11 {[%emt 0:01:56] The position is equal.} 9. Na3 {[%emt 0:00:30]} Nd4 {[%emt 0:01:04]} 10. Qd3 {[%emt 0:03:43]} b5 {[%emt 0:04:05]} 11. Nd1 {[%emt 0:17:18]} (11. Be3 $1 $11) 11... Bb7 $36 {[%emt 0:05:06][%mdl 2048] [#] ...Re8 is the strong threat. Black is in control. Black is much more active.} (11... bxa4 $6 12. Be3 $11) 12. Ne3 $2 {[%emt 0:13:04]} (12. Be3 $17) 12... Re8 {[%emt 0:03:27] aiming for ...Ng6.} (12... bxa4 13. Nac4 $15) 13. Bd2 {[%emt 0:08:18]} (13. axb5 {was worth a try.} axb5 14. c3) 13... b4 {[%emt 0:06:24]} (13... bxa4 14. O-O-O $17) (13... Ng6 $142 14. Ng4 Qf5 (14... Rxe4+ 15. Qxe4 Bxe4 16. Nxf6 $14) (14... Qh4 $2 15. O-O-O $19)) 14. Nac4 {[%emt 0:00:32]} (14. Qc4 $142 bxa3 15. Qxc5 axb2 (15... Bxe4 16. Rxa3 d6 17. Qc4 $17) 16. Rb1 Bxe4 17. Rxb2) 14... Ng6 $19 {[%emt 0:00:11]} 15. e5 {[%emt 0:07:25]} Qh4 {[%emt 0:05:24][%cal Og6f4] And now ...Nf4! would win.} (15... Nxe5 16. Nxe5 Qxe5 (16... Rxe5 $2 17. O-O-O $17) 17. O-O-O $17) 16. Na5 {[%emt 0:06:16]} Bf3 {[%emt 0:13:28]} ({And not} 16... Nxe5 17. Nxb7+ Kc8 18. Nxc5 $11) (16... Be4 17. Qc4 d6 (17... Rxe5 18. O-O-O $15) 18. exd6 Nxc2+ 19. Kd1 Nxe3+ (19... Nxa1 $2 {perishes.} 20. Qxc5 Rc8 21. Bxa6 $18) (19... Bxd6 20. Nxc2 Qh5+ 21. f3 $17) 20. fxe3 cxd6 (20... Bxd6 $2 21. Be2 $19) 21. Be2 $19) 17. gxf3 {[%emt 0:15:35] Strongly threatening 0-0-0.} Nxe5 {[%emt 0:00:11]} 18. Nb7+ {[%emt 0:00:10]} (18. O-O-O $142 Nxd3+ 19. Bxd3) 18... Kc8 {[%emt 0:00:05]} 19. Nxc5 {[%emt 0:01:46]} Nxd3+ {[%emt 0:00:08]} 20. Nxd3 {[%emt 0:00:02]} Nxc2+ {[%emt 0:00:10]} 21. Kd1 {[%emt 0:00:37]} Nxa1 {[%emt 0:00:08]} 22. Bxb4 {[%emt 0:04:09]} Rb8 {[%emt 0:00:21]} 23. Bc3 {[%emt 0:04:24]} Qxa4+ {[%emt 0:00:10]} 24. Kd2 {[%emt 0:03:18]} Nb3+ {[%emt 0:00:06]} 25. Ke1 {[%emt 0:00:39]} Qa1+ {[%emt 0:00:09]} 26. Ke2 {[%emt 0:00:02]} Nc1+ {[%emt 0:00:43]} 27. Nxc1 {[%emt 0:00:18]} Qxc1 {[%emt 0:00:05]} 28. Bg2 {[%emt 0:00:17]} Rxb2+ {[%emt 0:00:15]} 29. Bxb2 {[%emt 0:00:13]} Qxb2+ {[%emt 0:00:02]} 30. Kf1 {[%emt 0:01:04]} a5 {[%emt 0:00:22] ...a4 would now be deadly.} 31. Bh3 {[%emt 0:00:32]} a4 {[%emt 0:00:09][%cal Oe8e3] ( -> ...Rxe3!)} 32. Kg2 {[%emt 0:00:40]} Rxe3 {[%emt 0:00:05] White got outplayed after the opening.   Weighted Error Value: White=1.39/Black=0.12 (very precise) .  Loses game:     	White=1     	---        Mistake:       	White=5     	Black=1      Inaccurate:     	White=1     	---        OK:         	White=5     	Black=4      Best:        	---       	Black=5} 0-1

[Event "1st Festival Galdar 2024"]
[Site "?"]
[Date "2024.09.03"]
[Round "2.16"]
[White "Balaji, Aaravamudhan"]
[Black "Guerrero Orihuela, Jose Luis"]
[Result "1-0"]
[Annotator "TA"]
[ECO "D34"]
[WhiteElo "2396"]
[BlackElo "1992"]
[PlyCount "75"]
[EventDate "2024.09.02"]
[EventType "swiss"]
[SourceTitle "playchess.com"]
[Source "ChessBase"]
[SourceQuality "1"]
[TimeControl "5400+30"]

{[%evp 24,75,44,26,36,10,41,10,12,17,22,8,22,-6,-7,-7,-8,-9,-26,-8,52,33,67,66,162,159,192,176,193,210,208,195,197,162,223,216,226,231,224,191,256,213,278,198,283,275,360,359,491,488,550,521,1108,563]} 1. d4 {[%emt 0:06:17]} d5 {[%emt 0:00:07]} 2. c4 {[%emt 0:00:19]} e6 {[%emt 0:00:07]} 3. Nc3 {[%emt 0:00:04]} c5 {[%emt 0:00:05]} 4. cxd5 {[%emt 0:00:09]} exd5 {[%emt 0:00:05]} 5. Nf3 {[%emt 0:00:26]} Nc6 {[%emt 0:00:04]} 6. g3 {[%emt 0:00:21]} Nf6 {[%emt 0:00:06]} 7. Bg2 {[%emt 0:00:05]} Be7 {[%emt 0:00:06]} 8. O-O {[%emt 0:00:59]} O-O {[%emt 0:00:04]} 9. Bg5 {[%emt 0:10:58]} c4 {[%emt 0:00:06]} 10. Ne5 {[%emt 0:01:17]} Be6 {[%emt 0:00:28]} 11. Nxc6 {[%emt 0:03:39]} bxc6 {[%emt 0:00:05]} 12. b3 {[%emt 0:00:04]} cxb3 {[%emt 0:00:24]} 13. axb3 {[%emt 0:01:29]} h6 {[%emt 0:14:40]} 14. Bf4 {[%emt 0:03:28]} Bd6 {[%emt 0:04:16]} 15. Be5 {[%emt 0:15:17]} Bxe5 {[%emt 0:06:50] The position is equal.} 16. dxe5 {[%emt 0:00:06]} Ng4 {[%emt 0:00:04]} 17. Qd4 {[%emt 0:01:36][%cal Oh2h3] Threatening h3!} Qc7 {[%emt 0:07:28]} 18. f4 {[%emt 0:05:07] [#] h3 would now be deadly.} (18. h3 $5 Nxe5 19. f4 $14) 18... Qb6 {[%emt 0:11:54]} 19. Qxb6 {[%emt 0:02:34]} axb6 {[%emt 0:00:04]} 20. Rfc1 {[%emt 0:00:16]} Rxa1 {[%emt 0:09:40]} 21. Rxa1 {[%emt 0:00:01]} d4 {[%emt 0:00:05]} ({Black should try} 21... Ne3 $11) 22. Na4 $14 {[%emt 0:04:09]} c5 {[%emt 0:02:09]} 23. Nxb6 {[%emt 0:01:44]} Bxb3 {[%emt 0:00:57] Black is on the road to losing.} (23... Ne3 $14) 24. Nd7 $18 {[%emt 0:01:27][%csl LRc5,LRf8]} Rd8 {[%emt 0:09:01]} 25. Nxc5 {[%emt 0:00:20]} Bc4 {[%emt 0:00:16]} 26. Bf3 {[%emt 0:04:30]} Ne3 {[%emt 0:00:12]} 27. Nb7 {[%emt 0:01:26]} Rb8 {[%emt 0:01:53]} 28. Nd6 {[%emt 0:02:08]} Ba6 {[%emt 0:03:09]} (28... Be6 $142 29. Be4 Bg4) 29. Kf2 {[%emt 0:10:28]} (29. Rxa6 $2 Rb1+ 30. Kf2 Rf1#) 29... Bc8 {[%emt 0:03:16]} 30. Nxc8 {[%emt 0:08:45]} Rxc8 {[%emt 0:00:07][%mdl 4096] Endgame. KRB-KRN} 31. Be4 {[%emt 0:03:27]} g5 {[%emt 0:00:52]} (31... f6 $142 32. exf6 gxf6) 32. Ra4 {[%emt 0:01:29]} Rd8 {[%emt 0:01:26]} 33. Ra6 {[%emt 0:01:51]} Rc8 {[%emt 0:02:39]} (33... f6 $142 34. e6 (34. exf6 gxf4 35. Bf3 Kh7 $18) 34... Rc8) 34. Rd6 {[%emt 0:00:42]} (34. Rxh6 $2 Rc1 (34... Ng4+ 35. Kf3 $14) 35. Bg2 (35. Bh7+ $2 Kg7 $19) 35... Ng4+ 36. Kf3 Nxh6 $19) 34... Rc4 {[%emt 0:00:30]} 35. Bd3 {[%emt 0:00:29]} (35. Rxh6 $2 {is the wrong capture.} Rc1 (35... Ng4+ 36. Kf3 $14) 36. Bg2 (36. Bh7+ $2 Kg7 $19) 36... Ng4+ 37. Kf3 Nxh6 $19) 35... Rb4 {[%emt 0:00:11]} 36. Kf3 {[%emt 0:01:15] White is clearly winning.} (36. Rxh6 Ng4+ 37. Kf3 Nxh6 $14) 36... g4+ {[%emt 0:02:07]} 37. Ke4 {[%emt 0:02:08]} Nf1 {[%emt 0:00:06]} 38. Rxh6 {[%emt 0:00:47] Weighted Error Value: White=0.14 (very precise) /Black=0.42.  Mistake:       	---       	Black=5      Inaccurate:     	White=4     	Black=6      OK:         	White=10    	Black=5      Best:        	White=3     	Black=1} ({Not} 38. Rxd4 Rxd4+ 39. Kxd4 Nxh2 $16) 1-0

[Event "1st Festival Galdar 2024"]
[Site "?"]
[Date "2024.09.03"]
[Round "2.17"]
[White "Ramirez Maillo, Juan Adonay"]
[Black "Suarez Uriel, Adrian"]
[Result "0-1"]
[Annotator "TA"]
[ECO "B22"]
[WhiteElo "1965"]
[BlackElo "2383"]
[PlyCount "40"]
[EventDate "2024.09.02"]
[EventType "swiss"]
[SourceTitle "playchess.com"]
[Source "ChessBase"]
[SourceQuality "1"]
[TimeControl "5400+30"]

{[%evp 18,40,12,19,16,15,14,5,23,-4,0,-4,-2,-44,-47,-56,-43,-52,-34,-40,-37,-198,-195,-359,-363]} 1. e4 {[%emt 1:31:00]} c5 {[%emt 0:00:07]} 2. c3 {[%emt 0:00:00]} d5 {[%emt 0:00:14]} 3. exd5 {[%emt 0:00:00]} Nf6 {[%emt 0:00:04]} 4. d4 {[%emt 0:00:00]} Nxd5 {[%emt 0:00:13]} 5. Nf3 {[%emt 0:00:00][%cal Bg1f3,Bf3d4,Bd4b5,Bb5c3,Bc3d5][%mdl 32]} e6 {[%emt 0:00:28][%cal Be7e6,Be6e5][%mdl 32]} 6. Be2 {[%emt 0:00:00]} Be7 {[%emt 0:00:37]} 7. O-O {[%emt 0:00:00]} O-O {[%emt 0:00:06]} 8. c4 {[%emt 0:00:00]} Nf6 {[%emt 0:01:12]} 9. Nc3 {[%emt 0:00:00]} cxd4 {[%emt 0:04:53]} 10. Nxd4 {[%emt 0:00:00]} e5 {[%emt 0:00:21] Inhibits Bf4.} 11. Ndb5 {[%emt 0:00:00]} Nc6 {[%emt 0:00:07]} 12. Nd5 {[%emt 0:00:00]} a6 {[%emt 0:01:36] The position is equal.} 13. Nbc3 {[%emt 0:00:00]} Nxd5 {[%emt 0:00:11]} 14. Nxd5 {[%emt 0:00:00]} Bc5 {[%emt 0:00:04]} 15. a3 {[%emt 0:00:00]} Be6 {[%emt 0:00:20]} 16. Be3 {[%emt 0:00:00]} Nd4 {[%emt 0:00:23][%cal Ob7b5]} 17. b4 {[%emt 0:00:00]} Ba7 {[%emt 0:00:40] White must now prevent ...b5.} 18. Nc3 $1 {[%emt 0:00:00]} Qh4 {[%emt 0:02:20]} 19. Rb1 $2 {[%emt 0:00:00] [#]} (19. c5 $1 $15) 19... Nxe2+ $19 {[%emt 0:00:35]} 20. Qxe2 $2 {[%emt 0:00:00]} (20. Nxe2 {was the only defense.} Bxe3 (20... Qxc4 21. Bxa7 Rfd8 22. Qe1 $15) 21. fxe3) 20... Bxc4 {[%emt 1:25:59] Black took control after the opening.   Weighted Error Value: White=0.49/Black=0.04 (flawless) .  Loses game:     	White=1     	---        Mistake:       	White=1     	---        Inaccurate:     	White=2     	---        OK:         	White=4     	Black=6      Best:        	---       	Black=1      Strong:       	White=1     	---} ({Less strong is} 20... Qxc4 21. Bxa7 Qxc3 22. Rfc1 Qxa3 23. Bc5 $17) 0-1